[Event "Titled Tuesday Blitz March 01 Early 2022"]
[White "Nazari, Arad"]
[Black "Jaskolka, Tomasz"]
[WhiteFideId "12577324"]
[BlackFideId "1170791"]
[WhiteElo "2120"]
[BlackElo "2054"]
[Result "1-0"]
[Round "05"]
[TimeControl "180+1"]
[Date "2022.03.01"]
[WhiteClock "0:00:05"]
[BlackClock "0:00:04"]

1. e4 {[%clk 0:03:00]}  c5 {[%clk 0:02:54]} 2. Nf3 {[%clk 0:02:37]}  e6 {[%clk 0:02:51]} 3. d4 {[%clk 0:02:34]}  cxd4 {[%clk 0:02:51]} 4. Nxd4 {[%clk 0:02:35]}  Nc6 {[%clk 0:02:51]} 5. Nxc6 {[%clk 0:02:35]}  bxc6 {[%clk 0:02:50]} 6. Bd3 {[%clk 0:02:35]}  Nf6 {[%clk 0:02:45]} 7. O-O {[%clk 0:02:36]}  d5 {[%clk 0:02:27]} 8. Nd2 {[%clk 0:02:35]}  Bd6 {[%clk 0:02:25]} 9. f4 {[%clk 0:02:25]}  Qb6+ {[%clk 0:02:22]} 10. Kh1 {[%clk 0:02:22]}  Bc7 {[%clk 0:02:21]} 11. e5 {[%clk 0:02:22]}  Nd7 {[%clk 0:02:21]} 12. Qg4 {[%clk 0:02:17]}  g6 {[%clk 0:02:19]} 13. Nf3 {[%clk 0:02:09]}  Ba6 {[%clk 0:02:16]} 14. b3 {[%clk 0:02:01]}  Bxd3 {[%clk 0:02:13]} 15. cxd3 {[%clk 0:02:02]}  Nc5 {[%clk 0:01:55]} 16. Be3 {[%clk 0:01:59]}  Qa5 {[%clk 0:01:48]} 17. Bxc5 {[%clk 0:01:52]}  Qxc5 {[%clk 0:01:47]} 18. Rac1 {[%clk 0:01:52]}  Qb5 {[%clk 0:01:43]} 19. Nd4 {[%clk 0:01:48]}  Qxd3 {[%clk 0:01:41]} 20. Nxc6 {[%clk 0:01:48]}  Qf5 {[%clk 0:01:05]} 21. Qh4 {[%clk 0:01:47]}  Bd8 {[%clk 0:01:05]} 22. Nxd8 {[%clk 0:01:46]}  Rxd8 {[%clk 0:01:06]} 23. Rc7 {[%clk 0:01:45]}  O-O {[%clk 0:01:05]} 24. Rxa7 {[%clk 0:01:19]}  Ra8 {[%clk 0:01:03]} 25. Qe7 {[%clk 0:01:15]}  Rxa7 {[%clk 0:01:01]} 26. Qxa7 {[%clk 0:01:16]}  Rc8 {[%clk 0:01:00]} 27. Qd4 {[%clk 0:00:52]}  Qc2 {[%clk 0:00:39]} 28. a4 {[%clk 0:00:20]}  Qxb3 {[%clk 0:00:36]} 29. a5 {[%clk 0:00:21]}  Rc4 {[%clk 0:00:32]} 30. Qd2 {[%clk 0:00:13]}  Rc2 {[%clk 0:00:26]} 31. Qd4 {[%clk 0:00:10]}  Qa2 {[%clk 0:00:26]} 32. Rg1 {[%clk 0:00:09]}  Qxa5 {[%clk 0:00:25]} 33. h3 {[%clk 0:00:08]}  Rc4 {[%clk 0:00:22]} 34. Qe3 {[%clk 0:00:08]}  Re4 {[%clk 0:00:21]} 35. Qf3 {[%clk 0:00:08]}  Qb4 {[%clk 0:00:20]} 36. Rf1 {[%clk 0:00:08]}  Qd4 {[%clk 0:00:20]} 37. Kh2 {[%clk 0:00:08]}  Re3 {[%clk 0:00:20]} 38. Qf2 {[%clk 0:00:08]}  Qe4 {[%clk 0:00:20]} 39. Qh4 {[%clk 0:00:04]}  Qb4 {[%clk 0:00:07]} 40. Qd8+ {[%clk 0:00:04]}  Qf8 {[%clk 0:00:08]} 41. Qg5 {[%clk 0:00:04]}  Re4 {[%clk 0:00:08]} 42. h4 {[%clk 0:00:03]}  h6 {[%clk 0:00:07]} 43. Qg3 {[%clk 0:00:03]}  Kh7 {[%clk 0:00:07]} 44. Qf3 {[%clk 0:00:02]}  Qd8 {[%clk 0:00:07]} 45. g3 {[%clk 0:00:02]}  Qc7 {[%clk 0:00:06]} 46. Rf2 {[%clk 0:00:03]}  Qc4 {[%clk 0:00:06]} 47. h5 {[%clk 0:00:03]}  gxh5 {[%clk 0:00:06]} 48. Qxh5 {[%clk 0:00:04]}  Qd3 {[%clk 0:00:05]} 49. Qxf7+ {[%clk 0:00:04]}  Kh8 {[%clk 0:00:06]} 50. Qe8+ {[%clk 0:00:05]}  Kh7 {[%clk 0:00:06]} 51. Qxe6 {[%clk 0:00:05]}  Re3 {[%clk 0:00:06]} 52. Qf7+ {[%clk 0:00:06]}  Kh8 {[%clk 0:00:06]} 53. Qf8+ {[%clk 0:00:06]}  Kh7 {[%clk 0:00:07]} 54. Qe7+ {[%clk 0:00:07]}  Kh8 {[%clk 0:00:07]} 55. Qd8+ {[%clk 0:00:07]}  Kh7 {[%clk 0:00:07]} 56. Qd7+ {[%clk 0:00:08]}  Kg6 {[%clk 0:00:06]} 57. e6 {[%clk 0:00:05]}  Rxg3 {[%clk 0:00:04]} 58. Qf7# {[%clk 0:00:05]} 1-0


[Site "https://www.chess.com"]

[Event "Titled Tuesday Blitz March 01 Early 2022"]
[White "Neiksans, Arturs"]
[Black "Ambartsumova, Karina"]
[WhiteFideId "11601388"]
[BlackFideId "4166299"]
[WhiteElo "2447"]
[BlackElo "2262"]
[Result "0-1"]
[Round "05"]
[TimeControl "180+1"]
[Date "2022.03.01"]
[WhiteClock "0:00:06"]
[BlackClock "0:00:11"]

1. e4 {[%clk 0:03:00]}  c5 {[%clk 0:02:58]} 2. Nf3 {[%clk 0:03:01]}  e6 {[%clk 0:02:58]} 3. g3 {[%clk 0:03:00]}  Nc6 {[%clk 0:02:56]} 4. Bg2 {[%clk 0:02:59]}  Qc7 {[%clk 0:02:56]} 5. O-O {[%clk 0:02:59]}  Nf6 {[%clk 0:02:54]} 6. Nc3 {[%clk 0:02:53]}  Be7 {[%clk 0:02:51]} 7. d3 {[%clk 0:02:52]}  O-O {[%clk 0:02:40]} 8. Ng5 {[%clk 0:02:49]}  d6 {[%clk 0:02:39]} 9. f4 {[%clk 0:02:49]}  Nd4 {[%clk 0:02:35]} 10. g4 {[%clk 0:02:41]}  Bd7 {[%clk 0:02:15]} 11. Nh3 {[%clk 0:02:30]}  Bc6 {[%clk 0:02:13]} 12. g5 {[%clk 0:02:23]}  Nd7 {[%clk 0:02:12]} 13. f5 {[%clk 0:02:24]}  exf5 {[%clk 0:02:08]} 14. exf5 {[%clk 0:02:24]}  Bxg2 {[%clk 0:02:08]} 15. Kxg2 {[%clk 0:02:24]}  Qc6+ {[%clk 0:02:08]} 16. Ne4 {[%clk 0:02:14]}  Rfe8 {[%clk 0:01:34]} 17. c3 {[%clk 0:02:13]}  d5 {[%clk 0:01:26]} 18. Ng3 {[%clk 0:02:04]}  Nb5 {[%clk 0:01:26]} 19. a4 {[%clk 0:01:50]}  Nd6 {[%clk 0:01:19]} 20. Kg1 {[%clk 0:01:36]}  d4 {[%clk 0:01:16]} 21. c4 {[%clk 0:01:36]}  Ne5 {[%clk 0:01:06]} 22. Bf4 {[%clk 0:01:33]}  Bf8 {[%clk 0:01:05]} 23. Bxe5 {[%clk 0:01:24]}  Rxe5 {[%clk 0:01:05]} 24. Qf3 {[%clk 0:01:24]}  Qxf3 {[%clk 0:01:01]} 25. Rxf3 {[%clk 0:01:24]}  Rae8 {[%clk 0:01:01]} 26. Raf1 {[%clk 0:01:19]}  Re3 {[%clk 0:00:52]} 27. Nf4 {[%clk 0:01:14]}  Rxf3 {[%clk 0:00:45]} 28. Rxf3 {[%clk 0:01:14]}  Re1+ {[%clk 0:00:46]} 29. Kg2 {[%clk 0:00:59]}  Rb1 {[%clk 0:00:41]} 30. Rf2 {[%clk 0:00:57]}  Ra1 {[%clk 0:00:34]} 31. Nd5 {[%clk 0:00:54]}  Rxa4 {[%clk 0:00:32]} 32. f6 {[%clk 0:00:49]}  Ra2 {[%clk 0:00:27]} 33. fxg7 {[%clk 0:00:30]}  Bxg7 {[%clk 0:00:26]} 34. Nh5 {[%clk 0:00:30]}  a5 {[%clk 0:00:21]} 35. Re2 {[%clk 0:00:22]}  a4 {[%clk 0:00:19]} 36. Kf3 {[%clk 0:00:22]}  a3 {[%clk 0:00:19]} 37. bxa3 {[%clk 0:00:22]}  Rxa3 {[%clk 0:00:20]} 38. Nhf4 {[%clk 0:00:20]}  Rb3 {[%clk 0:00:13]} 39. Re7 {[%clk 0:00:20]}  Bf8 {[%clk 0:00:13]} 40. Rd7 {[%clk 0:00:20]}  b5 {[%clk 0:00:10]} 41. cxb5 {[%clk 0:00:17]}  Rxb5 {[%clk 0:00:09]} 42. Nf6+ {[%clk 0:00:16]}  Kg7 {[%clk 0:00:10]} 43. Kg4 {[%clk 0:00:07]}  c4 {[%clk 0:00:09]} 44. dxc4 {[%clk 0:00:07]}  Nxc4 {[%clk 0:00:09]} 45. Rxd4 {[%clk 0:00:06]}  Ne5+ {[%clk 0:00:09]} 46. Kg3 {[%clk 0:00:04]}  Rb3+ {[%clk 0:00:09]} 47. Kg2 {[%clk 0:00:04]}  Ng6 {[%clk 0:00:10]} 48. N4h5+ {[%clk 0:00:04]}  Kh8 {[%clk 0:00:10]} 49. Rd8 {[%clk 0:00:04]}  Rb5 {[%clk 0:00:09]} 50. Nd7 {[%clk 0:00:02]}  Rxg5+ {[%clk 0:00:09]} 51. Ng3 {[%clk 0:00:02]}  Kg8 {[%clk 0:00:08]} 52. Kf3 {[%clk 0:00:03]}  h5 {[%clk 0:00:08]} 53. Ne4 {[%clk 0:00:03]}  Rf5+ {[%clk 0:00:08]} 54. Ke2 {[%clk 0:00:04]}  h4 {[%clk 0:00:08]} 55. Nef6+ {[%clk 0:00:04]}  Kg7 {[%clk 0:00:09]} 56. Ne8+ {[%clk 0:00:04]}  Kh6 {[%clk 0:00:09]} 57. Nef6 {[%clk 0:00:04]}  Be7 {[%clk 0:00:10]} 58. Ng8+ {[%clk 0:00:04]}  Kg7 {[%clk 0:00:09]} 59. Nxe7 {[%clk 0:00:04]}  Nxe7 {[%clk 0:00:10]} 60. Nb6 {[%clk 0:00:04]}  Nc6 {[%clk 0:00:10]} 61. Rd6 {[%clk 0:00:04]}  Re5+ {[%clk 0:00:10]} 62. Kf2 {[%clk 0:00:04]}  Ne7 {[%clk 0:00:09]} 63. Nd7 {[%clk 0:00:03]}  Rf5+ {[%clk 0:00:09]} 64. Kg2 {[%clk 0:00:04]}  Ng6 {[%clk 0:00:09]} 65. Rd2 {[%clk 0:00:03]}  Rg5+ {[%clk 0:00:10]} 66. Kf1 {[%clk 0:00:03]}  h3 {[%clk 0:00:09]} 67. Nc5 {[%clk 0:00:03]}  Nf4 {[%clk 0:00:09]} 68. Ne4 {[%clk 0:00:03]}  Rg4 {[%clk 0:00:09]} 69. Nf2 {[%clk 0:00:03]}  Rg2 {[%clk 0:00:09]} 70. Rd4 {[%clk 0:00:03]}  Ng6 {[%clk 0:00:08]} 71. Nxh3 {[%clk 0:00:02]}  Rxh2 {[%clk 0:00:09]} 72. Nf2 {[%clk 0:00:03]}  Rh5 {[%clk 0:00:09]} 73. Re4 {[%clk 0:00:03]}  Rf5 {[%clk 0:00:09]} 74. Re3 {[%clk 0:00:03]}  Ne5 {[%clk 0:00:09]} 75. Ke2 {[%clk 0:00:03]}  Rxf2+ {[%clk 0:00:09]} 76. Kxf2 {[%clk 0:00:03]}  Ng4+ {[%clk 0:00:10]} 77. Kf3 {[%clk 0:00:04]}  Nxe3 {[%clk 0:00:10]} 78. Kxe3 {[%clk 0:00:04]}  Kg6 {[%clk 0:00:11]} 79. Ke4 {[%clk 0:00:04]}  Kg5 {[%clk 0:00:11]} 80. Kf3 {[%clk 0:00:05]}  Kf5 {[%clk 0:00:11]} 81. Kg3 {[%clk 0:00:05]}  Ke4 {[%clk 0:00:12]} 82. Kf2 {[%clk 0:00:05]}  f6 {[%clk 0:00:10]} 83. Ke2 {[%clk 0:00:06]}  Kf4 {[%clk 0:00:10]} 84. Kf2 {[%clk 0:00:06]}  f5 {[%clk 0:00:11]} 85. Ke1 {[%clk 0:00:06]}  Ke3 {[%clk 0:00:11]} 86. Kf1 {[%clk 0:00:06]}  Kf3 {[%clk 0:00:11]} 87. Ke1 {[%clk 0:00:06]}  Kg2 {[%clk 0:00:11]} 0-1


[Site "https://www.chess.com"]

[Event "Titled Tuesday Blitz March 01 Early 2022"]
[White "Obolenskikh, Dmitry"]
[Black "Martinez Alcantara, Jose Eduardo"]
[WhiteFideId "4156013"]
[BlackFideId "3805662"]
[WhiteElo "2512"]
[BlackElo "2690"]
[Result "0-1"]
[Round "05"]
[TimeControl "180+1"]
[Date "2022.03.01"]
[WhiteClock "0:00:10"]
[BlackClock "0:00:07"]

1. e4 {[%clk 0:03:00]}  c5 {[%clk 0:02:58]} 2. Nf3 {[%clk 0:03:00]}  d6 {[%clk 0:02:59]} 3. d4 {[%clk 0:03:00]}  cxd4 {[%clk 0:03:00]} 4. Nxd4 {[%clk 0:03:01]}  Nf6 {[%clk 0:03:01]} 5. Nc3 {[%clk 0:03:01]}  Nc6 {[%clk 0:03:02]} 6. f3 {[%clk 0:02:58]}  e5 {[%clk 0:02:59]} 7. Nb3 {[%clk 0:02:58]}  Be7 {[%clk 0:02:58]} 8. Be3 {[%clk 0:02:58]}  Be6 {[%clk 0:02:58]} 9. Nd5 {[%clk 0:02:58]}  O-O {[%clk 0:02:54]} 10. Qd2 {[%clk 0:02:51]}  Bxd5 {[%clk 0:02:44]} 11. exd5 {[%clk 0:02:51]}  Nb8 {[%clk 0:02:45]} 12. c4 {[%clk 0:02:46]}  Nbd7 {[%clk 0:02:39]} 13. Be2 {[%clk 0:02:45]}  a5 {[%clk 0:02:39]} 14. Rc1 {[%clk 0:02:45]}  b6 {[%clk 0:02:28]} 15. O-O {[%clk 0:02:44]}  Nh5 {[%clk 0:02:23]} 16. Rfd1 {[%clk 0:02:41]}  g6 {[%clk 0:02:16]} 17. Na1 {[%clk 0:02:39]}  Ng7 {[%clk 0:02:16]} 18. Rc3 {[%clk 0:02:18]}  Nf5 {[%clk 0:02:06]} 19. Bf2 {[%clk 0:02:18]}  Bg5 {[%clk 0:02:07]} 20. Qe1 {[%clk 0:02:18]}  Re8 {[%clk 0:01:55]} 21. Nc2 {[%clk 0:02:00]}  h5 {[%clk 0:01:53]} 22. Bd3 {[%clk 0:01:51]}  Nd4 {[%clk 0:01:47]} 23. Qf1 {[%clk 0:01:50]}  Bf6 {[%clk 0:01:39]} 24. Nxd4 {[%clk 0:01:27]}  exd4 {[%clk 0:01:40]} 25. Rc2 {[%clk 0:01:28]}  Nc5 {[%clk 0:01:38]} 26. Be2 {[%clk 0:01:21]}  Ra7 {[%clk 0:01:31]} 27. Bxd4 {[%clk 0:01:19]}  Bxd4+ {[%clk 0:01:31]} 28. Rxd4 {[%clk 0:01:20]}  Qf6 {[%clk 0:01:31]} 29. Qf2 {[%clk 0:01:13]}  Rae7 {[%clk 0:01:29]} 30. Rd1 {[%clk 0:01:13]}  Re3 {[%clk 0:01:25]} 31. b3 {[%clk 0:01:10]}  Na6 {[%clk 0:01:18]} 32. Bf1 {[%clk 0:01:09]}  Nb4 {[%clk 0:01:17]} 33. Rcd2 {[%clk 0:01:09]}  Qe5 {[%clk 0:01:17]} 34. g3 {[%clk 0:01:08]}  Qc3 {[%clk 0:01:10]} 35. f4 {[%clk 0:01:00]}  Na6 {[%clk 0:00:57]} 36. Rd3 {[%clk 0:01:00]}  Rxd3 {[%clk 0:00:54]} 37. Rxd3 {[%clk 0:01:00]}  Qc1 {[%clk 0:00:40]} 38. Qxb6 {[%clk 0:00:59]}  Nc5 {[%clk 0:00:40]} 39. Rf3 {[%clk 0:00:56]}  Qd1 {[%clk 0:00:33]} 40. Kg2 {[%clk 0:00:44]}  Ne4 {[%clk 0:00:33]} 41. Qe3 {[%clk 0:00:40]}  Kf8 {[%clk 0:00:23]} 42. Qd3 {[%clk 0:00:38]}  Qc1 {[%clk 0:00:23]} 43. Re3 {[%clk 0:00:37]}  f5 {[%clk 0:00:23]} 44. Re2 {[%clk 0:00:35]}  Qa3 {[%clk 0:00:22]} 45. Qd4 {[%clk 0:00:34]}  Kf7 {[%clk 0:00:23]} 46. Kg1 {[%clk 0:00:33]}  Qc1 {[%clk 0:00:22]} 47. Qb2 {[%clk 0:00:31]}  Qd1 {[%clk 0:00:19]} 48. a3 {[%clk 0:00:28]}  Re7 {[%clk 0:00:12]} 49. b4 {[%clk 0:00:28]}  axb4 {[%clk 0:00:12]} 50. axb4 {[%clk 0:00:29]}  Rc7 {[%clk 0:00:13]} 51. Qc2 {[%clk 0:00:19]}  Qd4+ {[%clk 0:00:12]} 52. Kg2 {[%clk 0:00:19]}  Rxc4 {[%clk 0:00:12]} 53. Qa2 {[%clk 0:00:19]}  Rxb4 {[%clk 0:00:12]} 54. Qa6 {[%clk 0:00:18]}  Rb2 {[%clk 0:00:08]} 55. Kf3 {[%clk 0:00:12]}  Qc3+ {[%clk 0:00:06]} 56. Kg2 {[%clk 0:00:12]}  Qd4 {[%clk 0:00:07]} 57. Kf3 {[%clk 0:00:11]}  Rxe2 {[%clk 0:00:07]} 58. Qxe2 {[%clk 0:00:11]}  Qxd5 {[%clk 0:00:07]} 59. Ke3 {[%clk 0:00:10]}  Qc5+ {[%clk 0:00:07]} 60. Kf3 {[%clk 0:00:11]}  d5 {[%clk 0:00:07]} 61. Qa6 {[%clk 0:00:10]}  Qf2# {[%clk 0:00:07]} 0-1


[Site "https://www.chess.com"]

[Event "Titled Tuesday Blitz March 01 Early 2022"]
[White "Omelja, Artem"]
[Black "Kosakowski, Jakub"]
[WhiteFideId "14119846"]
[BlackFideId "1185080"]
[WhiteElo "2418"]
[BlackElo "2476"]
[Result "1-0"]
[Round "05"]
[TimeControl "180+1"]
[Date "2022.03.01"]
[WhiteClock "0:00:05"]
[BlackClock "0:00:07"]

1. d4 {[%clk 0:02:51]}  a6 {[%clk 0:02:47]} 2. c4 {[%clk 0:02:49]}  e6 {[%clk 0:02:46]} 3. Nf3 {[%clk 0:02:47]}  d5 {[%clk 0:02:44]} 4. cxd5 {[%clk 0:02:39]}  exd5 {[%clk 0:02:44]} 5. Nc3 {[%clk 0:02:39]}  Nf6 {[%clk 0:02:44]} 6. Bg5 {[%clk 0:02:39]}  Be6 {[%clk 0:02:44]} 7. e3 {[%clk 0:02:21]}  Nbd7 {[%clk 0:02:43]} 8. Bd3 {[%clk 0:02:18]}  Bd6 {[%clk 0:02:43]} 9. O-O {[%clk 0:02:14]}  c6 {[%clk 0:02:42]} 10. Qc2 {[%clk 0:02:12]}  h6 {[%clk 0:02:42]} 11. Bh4 {[%clk 0:02:12]}  Qc7 {[%clk 0:02:37]} 12. Rab1 {[%clk 0:01:43]}  O-O {[%clk 0:02:20]} 13. Rfc1 {[%clk 0:01:34]}  Bg4 {[%clk 0:02:17]} 14. Bg3 {[%clk 0:01:30]}  Bxf3 {[%clk 0:02:17]} 15. gxf3 {[%clk 0:01:31]}  Rfe8 {[%clk 0:02:11]} 16. b4 {[%clk 0:01:26]}  Nb6 {[%clk 0:01:05]} 17. b5 {[%clk 0:00:28]}  Bxg3 {[%clk 0:00:59]} 18. hxg3 {[%clk 0:00:24]}  axb5 {[%clk 0:00:31]} 19. Nxb5 {[%clk 0:00:24]}  Qd8 {[%clk 0:00:31]} 20. Nd6 {[%clk 0:00:18]}  Qxd6 {[%clk 0:00:29]} 21. Rxb6 {[%clk 0:00:19]}  Ra7 {[%clk 0:00:22]} 22. Rcb1 {[%clk 0:00:19]}  Rea8 {[%clk 0:00:22]} 23. R1b2 {[%clk 0:00:18]}  Qc7 {[%clk 0:00:20]} 24. Kg2 {[%clk 0:00:16]}  Nd7 {[%clk 0:00:20]} 25. R6b3 {[%clk 0:00:16]}  h5 {[%clk 0:00:18]} 26. Qb1 {[%clk 0:00:14]}  b5 {[%clk 0:00:18]} 27. Qc2 {[%clk 0:00:14]}  Qd6 {[%clk 0:00:18]} 28. Rc3 {[%clk 0:00:14]}  Ra6 {[%clk 0:00:19]} 29. a4 {[%clk 0:00:12]}  bxa4 {[%clk 0:00:18]} 30. Bxa6 {[%clk 0:00:10]}  Rxa6 {[%clk 0:00:18]} 31. Ra2 {[%clk 0:00:11]}  h4 {[%clk 0:00:18]} 32. Rxa4 {[%clk 0:00:09]}  Rxa4 {[%clk 0:00:18]} 33. Qxa4 {[%clk 0:00:10]}  c5 {[%clk 0:00:14]} 34. dxc5 {[%clk 0:00:09]}  Nxc5 {[%clk 0:00:10]} 35. Qb4 {[%clk 0:00:07]}  Ne4 {[%clk 0:00:10]} 36. Qxd6 {[%clk 0:00:07]}  Nxd6 {[%clk 0:00:11]} 37. gxh4 {[%clk 0:00:07]}  Nf5 {[%clk 0:00:09]} 38. h5 {[%clk 0:00:07]}  d4 {[%clk 0:00:08]} 39. Rc5 {[%clk 0:00:07]}  g6 {[%clk 0:00:07]} 40. hxg6 {[%clk 0:00:07]}  fxg6 {[%clk 0:00:08]} 41. exd4 {[%clk 0:00:06]}  Nxd4 {[%clk 0:00:08]} 42. Rc7 {[%clk 0:00:06]}  Ne6 {[%clk 0:00:08]} 43. Ra7 {[%clk 0:00:06]}  Ng7 {[%clk 0:00:06]} 44. Kg3 {[%clk 0:00:06]}  Kh7 {[%clk 0:00:07]} 45. f4 {[%clk 0:00:06]}  Kh6 {[%clk 0:00:07]} 46. Kg4 {[%clk 0:00:06]}  Nf5 {[%clk 0:00:06]} 47. Ra5 {[%clk 0:00:05]}  Nd4 {[%clk 0:00:06]} 48. Rd5 {[%clk 0:00:04]}  Nc6 {[%clk 0:00:04]} 49. f5 {[%clk 0:00:04]}  Ne7 {[%clk 0:00:04]} 50. Re5 {[%clk 0:00:03]}  Ng8 {[%clk 0:00:02]} 51. fxg6 {[%clk 0:00:02]}  Kxg6 {[%clk 0:00:02]} 52. Rg5+ {[%clk 0:00:03]}  Kf7 {[%clk 0:00:03]} 53. Rxg8 {[%clk 0:00:03]}  Kxg8 {[%clk 0:00:04]} 54. Kf5 {[%clk 0:00:04]}  Kf7 {[%clk 0:00:05]} 55. f4 {[%clk 0:00:04]}  Ke7 {[%clk 0:00:05]} 56. Kg6 {[%clk 0:00:05]}  Ke6 {[%clk 0:00:06]} 57. f5+ {[%clk 0:00:05]}  Kd5 {[%clk 0:00:07]} 58. f6 {[%clk 0:00:05]} 1-0


[Site "https://www.chess.com"]

[Event "Titled Tuesday Blitz March 01 Early 2022"]
[White "Oparin, Grigoriy"]
[Black "Alavkin, Arseny"]
[WhiteFideId "24125890"]
[BlackFideId "4120612"]
[WhiteElo "2685"]
[BlackElo "2391"]
[Result "1-0"]
[Round "05"]
[TimeControl "180+1"]
[Date "2022.03.01"]
[WhiteClock "0:01:44"]
[BlackClock "0:01:35"]

1. d4 {[%clk 0:03:00]}  Nf6 {[%clk 0:02:35]} 2. c4 {[%clk 0:03:00]}  g6 {[%clk 0:02:35]} 3. Nf3 {[%clk 0:03:01]}  Bg7 {[%clk 0:02:35]} 4. g3 {[%clk 0:03:02]}  O-O {[%clk 0:02:36]} 5. Bg2 {[%clk 0:03:03]}  d6 {[%clk 0:02:37]} 6. O-O {[%clk 0:03:03]}  Nc6 {[%clk 0:02:38]} 7. Nc3 {[%clk 0:03:04]}  Bf5 {[%clk 0:02:38]} 8. d5 {[%clk 0:03:00]}  Na5 {[%clk 0:02:38]} 9. b3 {[%clk 0:03:00]}  Ne4 {[%clk 0:02:36]} 10. Nxe4 {[%clk 0:03:00]}  Bxa1 {[%clk 0:02:37]} 11. Nh4 {[%clk 0:02:56]}  Bxe4 {[%clk 0:02:36]} 12. Bxe4 {[%clk 0:02:56]}  Bg7 {[%clk 0:02:36]} 13. Bd2 {[%clk 0:02:54]}  b6 {[%clk 0:02:36]} 14. Nf3 {[%clk 0:02:53]}  Nb7 {[%clk 0:02:35]} 15. h4 {[%clk 0:02:54]}  Nc5 {[%clk 0:02:34]} 16. Bc2 {[%clk 0:02:53]}  h5 {[%clk 0:02:35]} 17. Ng5 {[%clk 0:02:46]}  f6 {[%clk 0:02:30]} 18. Bxg6 {[%clk 0:02:18]}  fxg5 {[%clk 0:02:29]} 19. hxg5 {[%clk 0:02:19]}  Nd7 {[%clk 0:02:25]} 20. f4 {[%clk 0:02:13]}  Ne5 {[%clk 0:02:17]} 21. Bxh5 {[%clk 0:02:10]}  Qd7 {[%clk 0:02:15]} 22. Kg2 {[%clk 0:02:05]}  Qf5 {[%clk 0:02:10]} 23. Qb1 {[%clk 0:02:02]}  Qxb1 {[%clk 0:02:04]} 24. Rxb1 {[%clk 0:02:02]}  Nd7 {[%clk 0:02:04]} 25. Bg4 {[%clk 0:02:03]}  Rfd8 {[%clk 0:02:01]} 26. e4 {[%clk 0:02:01]}  Nc5 {[%clk 0:01:58]} 27. Kf3 {[%clk 0:02:00]}  a5 {[%clk 0:01:58]} 28. Be3 {[%clk 0:01:57]}  Rab8 {[%clk 0:01:54]} 29. Rh1 {[%clk 0:01:56]}  b5 {[%clk 0:01:51]} 30. Bxc5 {[%clk 0:01:54]}  dxc5 {[%clk 0:01:52]} 31. Be6+ {[%clk 0:01:54]}  Kf8 {[%clk 0:01:51]} 32. Kg4 {[%clk 0:01:53]}  bxc4 {[%clk 0:01:50]} 33. bxc4 {[%clk 0:01:54]}  Bd4 {[%clk 0:01:41]} 34. Rh7 {[%clk 0:01:52]}  Rd6 {[%clk 0:01:37]} 35. e5 {[%clk 0:01:46]}  Rxe6 {[%clk 0:01:37]} 36. dxe6 {[%clk 0:01:47]}  Rb2 {[%clk 0:01:35]} 37. Kf5 {[%clk 0:01:44]} 1-0


[Site "https://www.chess.com"]

[Event "Titled Tuesday Blitz March 01 Early 2022"]
[White "Ozer, Omer Faruk"]
[Black "Jarocka, Liwia"]
[WhiteFideId "6354564"]
[BlackFideId "21807558"]
[WhiteElo "2050"]
[BlackElo "1896"]
[Result "1-0"]
[Round "05"]
[TimeControl "180+1"]
[Date "2022.03.01"]
[WhiteClock "0:00:18"]
[BlackClock "0:00:15"]

1. e4 {[%clk 0:03:00]}  c5 {[%clk 0:02:50]} 2. Nc3 {[%clk 0:03:00]}  d6 {[%clk 0:02:50]} 3. Nf3 {[%clk 0:02:57]}  Nc6 {[%clk 0:02:50]} 4. Bb5 {[%clk 0:02:56]}  Bd7 {[%clk 0:02:49]} 5. O-O {[%clk 0:02:55]}  Nf6 {[%clk 0:02:49]} 6. Re1 {[%clk 0:02:55]}  e5 {[%clk 0:02:49]} 7. d3 {[%clk 0:02:54]}  Be7 {[%clk 0:02:49]} 8. Bg5 {[%clk 0:02:54]}  O-O {[%clk 0:02:50]} 9. h3 {[%clk 0:02:53]}  a6 {[%clk 0:02:47]} 10. Bc4 {[%clk 0:02:53]}  Nd4 {[%clk 0:02:45]} 11. Bxf6 {[%clk 0:02:51]}  Bxf6 {[%clk 0:02:45]} 12. a3 {[%clk 0:02:50]}  Be6 {[%clk 0:02:44]} 13. Nd5 {[%clk 0:02:49]}  b5 {[%clk 0:02:41]} 14. Ba2 {[%clk 0:02:49]}  Rc8 {[%clk 0:02:38]} 15. c3 {[%clk 0:02:49]}  Nxf3+ {[%clk 0:02:38]} 16. Qxf3 {[%clk 0:02:49]}  Bxd5 {[%clk 0:02:38]} 17. Bxd5 {[%clk 0:02:49]}  Kh8 {[%clk 0:02:39]} 18. a4 {[%clk 0:02:35]}  Qd7 {[%clk 0:02:24]} 19. axb5 {[%clk 0:02:34]}  axb5 {[%clk 0:02:25]} 20. Ra6 {[%clk 0:02:25]}  Bd8 {[%clk 0:02:11]} 21. Rea1 {[%clk 0:02:22]}  Qe7 {[%clk 0:01:58]} 22. Qg4 {[%clk 0:02:15]}  Rb8 {[%clk 0:01:48]} 23. Ra7 {[%clk 0:02:03]}  Bc7 {[%clk 0:01:43]} 24. R1a6 {[%clk 0:01:57]}  Qd8 {[%clk 0:01:24]} 25. Rc6 {[%clk 0:01:53]}  Ba5 {[%clk 0:01:15]} 26. Rd7 {[%clk 0:01:51]}  Qe8 {[%clk 0:01:06]} 27. Rcxd6 {[%clk 0:01:47]}  b4 {[%clk 0:01:04]} 28. cxb4 {[%clk 0:01:11]}  Bxb4 {[%clk 0:01:00]} 29. Ra7 {[%clk 0:01:03]}  c4 {[%clk 0:00:57]} 30. Rdd7 {[%clk 0:01:01]}  cxd3 {[%clk 0:00:51]} 31. Rxf7 {[%clk 0:01:01]}  Rxf7 {[%clk 0:00:49]} 32. Rxf7 {[%clk 0:01:02]}  Bf8 {[%clk 0:00:49]} 33. Qd1 {[%clk 0:00:52]}  Rxb2 {[%clk 0:00:21]} 34. Qxd3 {[%clk 0:00:51]}  Rb8 {[%clk 0:00:21]} 35. Qg3 {[%clk 0:00:48]}  Rd8 {[%clk 0:00:21]} 36. Rb7 {[%clk 0:00:46]}  Qg6 {[%clk 0:00:19]} 37. Qf3 {[%clk 0:00:43]}  Qf6 {[%clk 0:00:20]} 38. Qg4 {[%clk 0:00:40]}  Bc5 {[%clk 0:00:19]} 39. Rf7 {[%clk 0:00:38]}  Qg6 {[%clk 0:00:17]} 40. g3 {[%clk 0:00:27]}  Qxg4 {[%clk 0:00:17]} 41. hxg4 {[%clk 0:00:28]}  g6 {[%clk 0:00:17]} 42. Kg2 {[%clk 0:00:27]}  Bd4 {[%clk 0:00:17]} 43. f4 {[%clk 0:00:27]}  Rb8 {[%clk 0:00:18]} 44. g5 {[%clk 0:00:26]}  exf4 {[%clk 0:00:17]} 45. gxf4 {[%clk 0:00:26]}  Bg7 {[%clk 0:00:18]} 46. e5 {[%clk 0:00:25]}  Rf8 {[%clk 0:00:19]} 47. Kf3 {[%clk 0:00:23]}  Rxf7 {[%clk 0:00:19]} 48. Bxf7 {[%clk 0:00:24]}  Bf8 {[%clk 0:00:19]} 49. Ke4 {[%clk 0:00:22]}  Kg7 {[%clk 0:00:20]} 50. Bd5 {[%clk 0:00:21]}  Bc5 {[%clk 0:00:20]} 51. Kf3 {[%clk 0:00:19]}  h6 {[%clk 0:00:20]} 52. Kg4 {[%clk 0:00:19]}  hxg5 {[%clk 0:00:20]} 53. Kxg5 {[%clk 0:00:20]}  Be7+ {[%clk 0:00:20]} 54. Kg4 {[%clk 0:00:20]}  g5 {[%clk 0:00:18]} 55. f5 {[%clk 0:00:20]}  Bd8 {[%clk 0:00:18]} 56. Kh5 {[%clk 0:00:20]}  Be7 {[%clk 0:00:18]} 57. Bf3 {[%clk 0:00:18]}  Bd8 {[%clk 0:00:18]} 58. Kg4 {[%clk 0:00:19]}  Bc7 {[%clk 0:00:17]} 59. f6+ {[%clk 0:00:18]}  Kg6 {[%clk 0:00:17]} 60. Be4+ {[%clk 0:00:18]}  Kf7 {[%clk 0:00:17]} 61. Kf5 {[%clk 0:00:19]}  g4 {[%clk 0:00:15]} 62. e6+ {[%clk 0:00:18]}  Ke8 {[%clk 0:00:15]} 63. Bc6+ {[%clk 0:00:17]}  Kf8 {[%clk 0:00:15]} 64. e7+ {[%clk 0:00:18]} 1-0


[Site "https://www.chess.com"]